bitfinex/quotes_ETHUSD_20241212
["timestamp","ask_amount","ask_price","bid_price","bid_amount"]
[1734002534545,3.38033,3920.9,3919.7,2.5512]
[1734002534746,3.38033,3920.9,3919.5,0.3827]
[1734002534747,0.8299,3920.9,3919.5,0.3827]
[1734002534934,2.55069,3920.5,3919.5,0.3827]
[1734002535335,2.55057,3920.7,3919.5,2.93403]
[1734002536033,0.50391531,3920.3,3919.5,2.93403]
[1734002536439,0.50391531,3920.3,3919.6,2.55124]
[1734002536645,0.50391531,3920.3,3919.7,2.55117]
[1734002537005,0.50391531,3920.3,3919.5,0.40821047]
[1734002537006,0.50391531,3920.3,3919.5,2.93403]
[1734002537160,0.50391531,3920.3,3919.5,0.3827]
[1734002537684,0.30547353,3920.2,3919.5,0.3827]
[1734002537880,3.05473531,3920.3,3919.5,0.3827]
[1734002538542,0.50391531,3920.3,3919.5,0.3827]
[1734002538884,0.50391531,3920.3,3919.6,2.55125]
[1734002539044,0.50391531,3920.3,3919.5,0.3827]
[1734002539842,0.50391531,3920.3,3919.5,2.93403]
[1734002540267,0.50391531,3920.3,3919.5,0.3827]
[1734002540589,3.05479531,3920.3,3919.5,0.3827]
[1734002541247,0.50391531,3920.3,3919.5,0.3827]
[1734002542458,3.05473531,3920.3,3919.5,0.3827]
[1734002542873,0.50391531,3920.3,3919.5,0.3827]
[1734002543449,0.8299,3920.9,3919.6,3.58829391]
[1734002543667,0.8299,3920.9,3919.8,2.55112]
[1734002543868,0.8299,3920.9,3919.6,3.58829391]
[1734002544072,2.55069,3920.5,3919.6,3.58829391]
[1734002544292,0.782,3920.0,3919.1,0.3827]
[1734002544584,0.782,3920.0,3918.7,0.3827]
[1734002544585,2.55108,3919.9,3918.7,0.3827]
[1734002544785,0.55,3919.9,3918.7,0.3827]
[1734002545105,2.55134,3919.6,3918.7,0.3827]
[1734002547289,0.388299,3919.8,3918.7,0.3827]
[1734002547651,2.55125,3919.7,3918.7,0.3827]
[1734002548533,0.7991,3919.7,3917.9,1.06483153]
[1734002548677,2.55179,3918.9,3917.9,0.3827]
[1734002548876,0.255179,3918.8,3917.9,0.3827]
[1734002549183,0.255179,3918.8,3917.6,3.58829391]
[1734002549184,0.7991,3918.8,3917.6,3.58829391]
[1734002549375,2.55213,3918.3,3917.5,0.3827]
[1734002549759,3.10186,3918.7,3917.5,0.3827]
[1734002549962,0.55,3918.5,3917.5,0.3827]
[1734002550214,3.102,3918.5,3917.5,0.3827]
[1734002550503,0.3102,3918.4,3917.5,0.3827]
[1734002550858,0.3102,3918.4,3917.6,2.57806576]
[1734002551089,3.35096,3918.8,3917.6,2.57806576]
[1734002551285,3.35096,3918.8,3917.6,2.55254]
[1734002551669,3.35096,3918.8,3917.5,0.3827]
[1734002551902,0.8156,3919.4,3918.0,2.5523]
[1734002552086,2.55154,3919.2,3918.1,2.93495]
[1734002552291,0.336714,3919.1,3918.1,2.93495]
[1734002552488,2.888334,3919.1,3918.1,0.3827]
[1734002553020,0.336714,3919.1,3917.7,0.3827]
[1734002553304,2.55192,3918.7,3917.7,0.3827]
[1734002553983,2.55174,3918.9,3917.7,0.3827]
[1734002554404,0.55,3919.0,3917.7,0.3827]
[1734002554706,2.55206,3918.4,3917.4,0.3827]
[1734002554891,0.7704,3918.9,3917.4,0.3827]
[1734002555232,2.55219,3918.2,3917.4,0.3827]
[1734002555718,0.13204,3918.8,3917.4,0.3827]
[1734002555719,2.55232,3918.0,3917.4,0.3827]
[1734002555904,0.7525,3918.1,3916.6,4.65312544]
[1734002555905,0.7525,3918.1,3916.8,0.3827]
[1734002556108,0.7525,3918.1,3916.9,0.39709939]
[1734002556298,0.7525,3918.1,3917.1,2.55289]
[1734002556492,3.30477,3918.1,3916.9,0.39709939]
[1734002556716,3.30477,3918.1,3916.9,2.95011939]
[1734002556930,1.3691,3918.7,3916.9,0.39709939]
[1734002557129,0.55,3918.5,3917.4,2.55268]
[1734002557416,2.55206,3918.4,3917.2,2.55283]
[1734002558019,2.55206,3918.4,3917.3,2.55277]
[1734002558233,2.55206,3918.4,3917.0,0.3827]
[1734002558234,0.55,3918.6,3917.0,0.3827]
[1734002558748,2.55245,3917.9,3917.0,0.3827]
[1734002559020,2.55225,3918.1,3917.0,0.71598494]
[1734002559223,2.55225,3918.1,3917.0,0.3827]
[1734002559522,1.3159,3918.3,3916.4,0.3827]
[1734002559818,1.3159,3918.3,3916.4,2.936]
[1734002559819,2.55254,3917.7,3916.4,2.936]
[1734002560021,2.55259,3917.6,3916.5,0.5936]
[1734002560223,0.776,3917.9,3916.4,0.3827]
[1734002560224,0.55,3917.8,3916.4,0.3827]
[1734002560426,0.776,3917.5,3916.0,0.3827]
[1734002560627,0.55,3917.2,3916.0,0.3827]
[1734002561528,2.55319,3916.7,3916.0,0.3827]
[1734002562730,3.32311,3917.1,3916.0,2.93632]
[1734002562932,1.20748612,3917.1,3916.0,0.3827]
[1734002563254,0.7702,3917.1,3916.0,0.3827]
[1734002563747,0.7702,3917.1,3915.2,3.0]
[1734002563748,2.55326,3916.6,3915.2,3.0]
[1734002563962,0.55,3916.9,3915.3,0.3827]
[1734002564119,0.7702,3917.1,3915.5,2.5539]
[1734002564120,0.13202,3916.8,3915.5,2.5539]
[1734002564297,0.55,3917.0,3915.4,0.69709939]
[1734002564298,2.55303,3916.9,3915.4,0.69709939]
[1734002564496,0.55,3916.6,3915.3,0.3827]
[1734002564943,0.7876,3916.3,3914.8,0.3827]
[1734002565153,2.5536,3916.1,3914.8,0.3827]
[1734002565357,2.5536,3916.1,3914.9,2.55433]
[1734002566031,0.7876,3916.3,3915.0,2.55426]
[1734002566198,0.8158,3916.7,3915.8,2.55374]
[1734002566405,0.8158,3916.7,3915.6,2.93657]
[1734002566615,0.8158,3916.7,3915.6,0.3827]
[1734002566817,0.8158,3916.7,3915.7,2.55381]
[1734002567335,3.36897,3916.7,3915.6,0.3827]
[1734002567850,3.36897,3916.7,3915.6,3.230214]
[1734002568078,2.55305,3916.9,3915.8,2.55372]
[1734002568252,1.29429823,3917.1,3915.6,3.676364]
[1734002568253,0.7865,3917.1,3915.6,3.676364]
[1734002569311,2.55297,3917.0,3915.8,2.55372]
[1734002569513,2.55297,3917.0,3915.9,2.55365]
[1734002569712,0.7865,3917.1,3916.0,0.255365]
[1734002569918,0.7865,3917.1,3916.0,2.808985]
[1734002570213,0.7865,3917.1,3916.1,2.55354]
[1734002570452,2.55277,3917.4,3916.1,0.3827]
[1734002570617,2.55277,3917.4,3916.1,0.40823247]
[1734002570818,2.55277,3917.4,3916.3,2.5534]
[1734002571116,2.55278,3917.3,3916.3,2.5534]
[1734002571512,2.55278,3917.3,3916.2,0.29618925]
[1734002572176,2.55278,3917.3,3916.2,2.84967925]
[1734002572682,0.50085398,3917.5,3916.2,2.84967925]
[1734002572683,0.50085398,3917.5,3916.2,0.29618925]
[1734002572821,3.44984064,3917.5,3916.3,2.55343]
[1734002573176,2.55274,3917.4,3916.3,2.55343]
[1734002573671,2.5528,3917.3,3916.2,2.55348]
[1734002574016,0.8096,3916.8,3915.0,0.676396]
[1734002574223,2.55357,3916.1,3915.0,3.230616]
[1734002574538,0.8096,3916.3,3915.0,0.3827]
[1734002574737,2.55356,3916.1,3915.0,0.3827]
[1734002574940,2.55356,3916.1,3915.0,2.93694]
[1734002575626,0.8096,3916.3,3915.0,0.3827]
[1734002575821,2.55364,3916.0,3915.0,0.3827]
[1734002576048,0.8096,3916.3,3915.0,2.93697]
[1734002576049,2.55351,3916.2,3915.0,2.93697]
[1734002576354,0.8096,3916.3,3915.0,0.3827]
[1734002576727,2.55399,3915.5,3914.6,0.3827]
[1734002576928,3.38429,3915.5,3914.6,0.3827]
[1734002577355,0.8303,3915.5,3914.6,2.93723]
[1734002577882,0.8303,3915.5,3914.6,0.3827]
[1734002578422,3.38425,3915.5,3914.6,0.3827]
[1734002578659,3.38425,3915.5,3914.2,0.3827]
[1734002578660,2.55422,3915.1,3914.2,0.3827]
[1734002578859,0.8004,3915.0,3914.0,2.55491]
[1734002579022,3.35468,3915.0,3913.8,2.93774]
[1734002579227,3.35468,3915.0,3913.9,2.55499]
[1734002579429,0.8004,3915.0,3914.0,0.293769]
[1734002580163,0.8004,3915.0,3913.8,0.3827]
[1734002580363,0.7642,3915.5,3913.9,0.3827]
[1734002580663,3.31815,3915.5,3914.3,2.55469]
[1734002580867,0.7642,3915.5,3914.3,2.55469]
[1734002581165,2.55414,3915.3,3914.1,0.3827]
[1734002581338,2.55414,3915.3,3914.2,2.55478]
[1734002581557,2.55414,3915.3,3914.2,2.848528]
[1734002581851,3.31816,3915.5,3914.3,2.55472]
[1734002582453,0.7642,3915.5,3914.2,0.293748]
[1734002582625,0.7642,3915.5,3914.5,2.55459]
[1734002582829,0.7642,3915.5,3914.3,2.55473]
[1734002583093,2.55376,3915.8,3914.7,0.3827]
[1734002583249,0.7891,3915.9,3915.0,2.55425]
[1734002583425,0.7891,3915.9,3914.7,0.3827]
[1734002583753,1.28597307,3916.6,3914.8,2.57993812]
[1734002583954,2.68193731,3916.5,3915.4,2.554]
[1734002584127,2.68193731,3916.5,3914.9,3.19503381]
[1734002584128,0.12859731,3916.5,3914.9,3.19503381]
[1734002584329,1.28597307,3916.6,3914.9,0.64069381]
[1734002584531,2.55344,3916.3,3915.1,2.55416]
[1734002584834,2.5535,3916.2,3915.0,2.55424]
[1734002585032,2.5535,3916.2,3915.0,2.87373338]
[1734002585284,2.55355,3916.2,3915.0,0.31949338]
[1734002585528,2.55355,3916.2,3915.1,2.55419]
[1734002585828,2.55342,3916.4,3915.1,2.55417]
[1734002586127,2.55342,3916.4,3915.2,2.55414]
[1734002586479,2.55342,3916.4,3914.9,0.40823821]
[1734002586684,2.55334,3916.5,3915.2,2.55408]
[1734002586886,2.55339,3916.4,3915.3,0.3827]
[1734002587178,0.38171962,3916.5,3915.3,0.3827]
[1734002587376,2.55347,3916.3,3915.3,0.3827]
[1734002588174,2.55331,3916.5,3915.4,2.57953795]
[1734002588377,0.7638,3916.6,3915.5,2.8501638]
[1734002588703,3.31709,3916.6,3915.5,2.8501638]
[1734002589032,0.8084,3916.1,3914.0,0.3827]
[1734002589224,2.554,3915.5,3913.6,0.3827]
[1734002589521,2.55382,3915.7,3914.6,2.55453]
[1734002589740,2.890042,3915.7,3914.6,2.55453]
[1734002590340,0.336222,3915.7,3914.6,2.55453]
[1734002590529,2.55383,3915.7,3914.6,2.55453]
[1734002590694,0.8084,3915.8,3914.5,0.3827]
[1734002591199,0.55,3915.5,3913.9,0.3827]
[1734002591402,2.55454,3914.6,3913.9,0.3827]
[1734002591619,2.55421,3915.1,3913.9,0.3827]
[1734002591818,2.55468,3914.4,3913.9,0.3827]
[1734002592055,0.388221,3915.0,3913.9,0.3827]
[1734002592354,0.55,3915.1,3913.3,0.3827]
[1734002592663,0.55,3914.9,3913.3,0.3827]
[1734002592940,0.766,3914.8,3913.5,2.55519]
[1734002593140,0.766,3914.8,3913.4,0.02554945]
[1734002593141,2.55447,3914.7,3913.6,2.55515]
[1734002593312,2.55435,3914.9,3913.7,2.93782]
[1734002593634,2.55435,3914.9,3913.8,0.293782]
[1734002594060,2.55435,3914.9,3913.8,2.848842]
[1734002594239,2.55425,3915.1,3913.9,2.5805274]
[1734002594447,0.775,3915.2,3913.8,0.293782]
[1734002594651,2.55427,3915.0,3913.7,0.3827]
[1734002594948,2.55461,3914.5,3913.7,0.3827]
[1734002595310,0.332927,3914.9,3913.7,0.3827]
[1734002595311,2.55446,3914.8,3913.7,0.3827]
[1734002595731,2.887267,3914.9,3913.7,2.93782]
[1734002596052,0.332927,3914.9,3914.0,2.93761]
[1734002596463,2.55421,3915.1,3914.0,2.93761]
[1734002598139,2.55422,3915.1,3914.0,2.93761]
[1734002598648,3.84524711,3915.5,3914.0,0.3827]
[1734002598649,1.29125711,3915.5,3914.0,0.3827]
[1734002598831,2.55406,3915.4,3914.2,2.54417372]
[1734002599007,0.38453171,3915.3,3914.2,2.54417372]
[1734002599209,2.93865171,3915.3,3914.2,2.54417372]
[1734002599538,2.55415,3915.2,3914.2,2.54417372]
[1734002600205,0.38453171,3915.3,3914.4,2.55464]
[1734002600402,2.55395,3915.5,3914.4,2.55463]
[1734002600607,2.55383,3915.7,3914.5,2.55458]
[1734002600841,2.55389,3915.6,3914.6,0.3827]
[1734002601550,2.55394,3915.6,3914.6,0.3827]
[1734002601748,2.55398,3915.5,3914.6,0.3827]
[1734002601921,2.884478,3915.5,3914.6,0.3827]
[1734002603462,0.330498,3915.5,3914.2,0.3827]
[1734002603779,3.10388,3915.6,3914.2,0.3827]
[1734002604064,2.5544,3914.8,3914.2,0.3827]
[1734002604299,0.7745,3915.5,3914.2,0.3827]
[1734002604475,2.55448,3914.7,3913.8,0.3827]
[1734002604792,2.55414,3915.2,3913.8,0.3827]
[1734002604793,2.55435,3914.9,3913.8,0.3827]
[1734002604942,2.55441,3914.8,3913.8,0.3827]
[1734002605974,2.55441,3914.8,3913.8,2.93774]
[1734002606173,2.55441,3914.8,3913.9,0.293774]
[1734002607281,0.7745,3915.5,3913.9,0.293774]
[1734002607445,3.50522928,3915.9,3914.1,0.3827]
[1734002607446,0.7632,3915.8,3914.1,0.3827]
[1734002607647,2.55393,3915.6,3914.5,0.3827]
[1734002607847,2.93616593,3915.6,3914.5,0.40824339]
[1734002608147,2.93616593,3915.6,3914.5,0.3827]
[1734002608344,2.55457,3914.6,3914.0,1.47307492]
[1734002608544,3.98999012,3915.6,3914.0,0.3827]
[1734002608747,2.55475,3914.3,3914.0,0.3827]
[1734002608963,2.55475,3914.3,3913.4,0.3827]
[1734002609164,2.55475,3914.3,3913.4,0.78299715]
[1734002609548,2.55462,3914.5,3913.4,0.78299715]
[1734002609747,2.55462,3914.5,3913.4,0.3827]
[1734002610075,0.55,3915.2,3913.6,0.3827]
[1734002610258,0.7632,3915.3,3913.8,0.3827]
[1734002610458,0.7632,3915.3,3913.7,0.88095518]
[1734002610459,0.7632,3915.3,3913.9,0.88089091]
[1734002610785,0.7632,3915.3,3913.9,0.3827]
[1734002610960,2.55423,3915.1,3914.0,2.70103259]
[1734002612001,2.55423,3915.1,3914.1,2.55484]
[1734002612163,2.55435,3914.9,3914.0,0.14616259]
[1734002612560,1.64379226,3915.3,3914.0,0.14616259]
[1734002612773,1.64379226,3915.3,3913.9,0.3827]
[1734002612774,2.55452,3914.7,3913.9,0.3827]
[1734002613157,2.55427,3915.0,3913.9,0.3827]
[1734002613386,2.55455,3914.6,3913.9,0.3827]
[1734002613699,1.3819,3914.5,3913.4,0.3827]
[1734002614594,2.55466,3914.4,3912.7,0.3827]
[1734002614817,2.55517,3913.7,3912.7,0.3827]
[1734002615804,0.55,3914.1,3912.7,0.3827]
[1734002615972,0.55,3914.3,3912.7,0.3827]
[1734002616177,2.55498,3914.0,3912.7,2.93841]
[1734002616391,2.55502,3913.9,3912.8,2.5557]
[1734002616709,3.3082,3913.8,3912.7,0.3827]
[1734002616995,2.55513,3913.7,3912.7,0.3827]
[1734002617165,0.7531,3913.8,3912.7,2.93844]
[1734002617520,2.810492,3913.9,3912.7,2.93846]
[1734002618068,2.55507,3913.8,3912.7,2.93846]
[1734002618487,2.55507,3913.8,3912.3,2.55599]
[1734002618488,1.3471,3913.6,3912.3,1.44753153]
[1734002618823,1.3471,3913.6,3912.3,0.3827]
[1734002618824,0.55,3913.5,3912.3,0.3827]
[1734002618965,0.55,3913.3,3912.3,0.3827]
[1734002619173,0.7971,3913.6,3912.3,0.3827]
[1734002620108,0.50824427,3913.4,3912.3,2.93874]
[1734002620310,3.06358427,3913.4,3912.3,0.69309648]
[1734002620814,3.06358427,3913.4,3912.3,0.3827]
[1734002620969,0.50824427,3913.4,3912.4,2.55594]
[1734002621407,0.8174,3914.1,3912.8,2.55569]
[1734002621606,2.55496,3914.0,3912.9,0.3827]
[1734002621823,2.55479,3914.3,3912.9,0.3827]
[1734002622109,3.05814576,3914.4,3913.3,2.93806]
[1734002622289,3.05814576,3914.4,3913.3,3.23442123]
[1734002622609,2.55455,3914.6,3913.4,2.55527]
[1734002622957,3.31342,3914.8,3913.8,0.3827]
[1734002623117,2.55442,3914.8,3913.8,0.3827]
[1734002623480,0.94138557,3915.1,3913.8,0.3827]
[1734002623481,3.49565557,3915.1,3913.8,0.676482]
[1734002623676,3.49565557,3915.1,3913.9,2.55496]
[1734002623876,0.94138557,3915.1,3914.0,2.55492]
[1734002624081,3.49560557,3915.1,3914.0,2.55492]
[1734002624277,2.55427,3915.0,3913.9,2.55496]
[1734002624478,0.804,3915.4,3913.8,0.3827]
[1734002624678,0.804,3915.4,3913.5,2.58075726]
[1734002624679,0.804,3915.4,3914.3,2.55473]
[1734002624878,2.889891,3915.3,3914.4,0.3827]
[1734002625435,0.335801,3915.3,3914.4,0.3827]
[1734002625639,2.55409,3915.3,3914.4,0.3827]
[1734002625931,0.51965505,3915.2,3914.4,0.3827]
[1734002626277,2.55421,3915.1,3914.0,0.3827]
[1734002626475,0.51965505,3915.2,3914.0,0.3827]
[1734002626686,0.51965505,3915.2,3914.0,2.93761]
[1734002626891,2.68658551,3915.1,3914.0,2.93761]
[1734002627525,2.55429,3915.0,3914.0,0.3827]
[1734002627898,0.13236551,3915.1,3914.0,0.3827]
[1734002628087,2.55414,3915.3,3914.1,2.55486]
[1734002628290,0.804,3915.4,3914.1,0.3827]
[1734002628516,0.52308414,3915.4,3914.1,0.3827]
[1734002628917,2.55422,3915.1,3914.1,0.3827]
[1734002629853,0.52308414,3915.4,3914.1,0.3827]
[1734002630000,2.86178841,3915.3,3914.1,0.3827]
[1734002630498,2.55433,3915.0,3914.1,0.3827]
[1734002630953,2.55416,3915.2,3914.1,0.3827]
[1734002631263,0.30770841,3915.3,3914.1,0.3827]
[1734002631471,0.803,3915.2,3914.1,0.3827]
[1734002631649,2.55433,3915.0,3914.1,0.3827]
[1734002632142,0.16337926,3915.1,3914.1,0.3827]
[1734002632332,2.5544,3914.9,3914.1,0.3827]
[1734002633345,0.16337926,3915.1,3914.1,0.3827]
[1734002633508,2.55428,3915.0,3914.1,0.3827]
[1734002633843,2.55447,3914.7,3914.1,0.3827]
[1734002634271,0.38283677,3915.0,3914.1,0.3827]
[1734002634424,2.55441,3914.8,3914.1,0.3827]
[1734002635051,2.93712677,3915.0,3914.1,0.3827]
[1734002635555,1.59957245,3915.9,3914.4,0.3827]
[1734002635556,2.55401,3915.5,3914.4,0.3827]
[1734002635769,3.07711414,3915.4,3914.4,0.3827]
[1734002637023,2.55408,3915.3,3914.4,0.3827]
[1734002638417,0.52308414,3915.4,3914.4,0.3827]
[1734002638622,0.55,3915.3,3914.4,0.3827]
[1734002639022,0.36270841,3915.2,3914.4,0.3827]
[1734002639256,0.7777,3915.6,3914.6,2.55452]
[1734002639461,2.55378,3915.8,3913.9,5.83102347]
[1734002639462,2.55378,3915.8,3914.8,0.3827]
[1734002639664,3.35534,3916.0,3914.8,2.93709]
[1734002639958,2.55364,3916.0,3914.8,0.3827]
[1734002640158,2.55364,3916.0,3914.9,2.55433]
[1734002640361,1.83313993,3916.3,3914.8,0.3827]
[1734002640568,0.7654,3916.7,3915.0,0.3827]
[1734002640727,0.51957801,3916.8,3915.7,0.3827]
[1734002641222,3.07273801,3916.8,3915.7,0.3827]
[1734002641560,3.45655181,3916.8,3915.7,0.3827]
[1734002642073,0.3838138,3916.8,3915.7,2.9365]
[1734002642275,0.3838138,3916.8,3915.8,2.55374]
[1734002642439,0.8219,3917.5,3915.9,0.3827]
[1734002643049,2.55291,3917.1,3916.2,0.3827]
[1734002643369,2.55287,3917.2,3916.2,0.3827]
[1734002643756,2.55272,3917.4,3916.2,2.93617]
[1734002643960,0.8219,3917.5,3916.2,0.3827]
[1734002644163,2.5529,3917.1,3916.2,0.3827]
[1734002644360,2.55296,3917.1,3916.2,0.3827]
[1734002644564,0.255296,3917.1,3916.2,0.3827]
[1734002644752,0.8219,3917.5,3916.2,0.3827]
[1734002644753,2.55278,3917.3,3916.2,0.3827]
[1734002645383,3.05321841,3917.6,3916.2,0.3827]
[1734002645678,3.92082,3918.0,3916.5,2.93597]
[1734002645679,2.55254,3917.7,3916.5,2.93597]
[1734002645838,2.55254,3917.7,3916.7,0.3827]
[1734002646267,2.55259,3917.6,3916.7,0.3827]
[1734002648145,2.55219,3918.2,3916.8,2.55309]
[1734002648353,2.55219,3918.2,3917.0,0.3827]
[1734002648354,2.55233,3918.0,3917.0,0.3827]
[1734002648695,2.55244,3917.9,3917.0,0.3827]
[1734002648875,0.38253032,3918.0,3917.0,0.3827]
[1734002649310,0.55,3918.2,3917.0,0.3827]
[1734002649512,2.55225,3918.1,3916.2,0.3827]
[1734002649795,2.55274,3917.4,3916.3,0.3827]
[1734002649993,0.255274,3917.3,3916.3,0.3827]
[1734002650316,2.55243,3917.9,3916.4,0.3827]
[1734002650452,1.3133,3918.2,3916.4,2.83102347]
[1734002650663,2.55256,3917.7,3916.7,0.3827]
[1734002651526,2.55238,3918.0,3916.7,2.93586]
[1734002651656,2.55238,3917.9,3916.7,2.93586]
[1734002651861,0.386568,3917.9,3916.7,3.51254835]
[1734002652060,2.55248,3917.8,3916.7,3.51254835]
[1734002652311,0.7633,3918.2,3916.8,0.3827]
[1734002652513,2.55229,3918.1,3916.9,0.3827]
[1734002652808,2.55229,3918.1,3917.0,2.55297]
[1734002652959,2.55229,3918.1,3917.1,0.3827]
[1734002653163,0.7854,3918.5,3917.2,2.55284]
[1734002653367,2.55213,3918.3,3917.3,0.3827]
[1734002654033,0.7854,3918.5,3917.3,0.3827]
[1734002654314,2.55251,3917.7,3917.3,0.3827]
[1734002654528,0.255251,3917.7,3917.3,0.3827]
[1734002654821,3.33743,3918.5,3916.4,2.83102347]
[1734002654822,2.55261,3917.6,3917.1,0.3827]
[1734002655524,2.55243,3917.9,3917.1,0.3827]
[1734002656719,2.55226,3918.1,3917.1,0.3827]
[1734002656938,2.55234,3918.0,3917.1,0.3827]
[1734002658225,2.55219,3918.3,3917.1,0.3827]
[1734002658504,2.55223,3918.2,3917.1,2.9356]
[1734002658663,0.38444173,3918.3,3916.8,2.83102347]
[1734002658865,0.50682728,3918.6,3916.6,2.55318]
[1734002658866,0.50682728,3918.6,3917.5,0.3827]
[1734002659163,2.55201,3918.5,3917.6,0.293539]
[1734002659386,2.55207,3918.4,3917.5,0.3827]
[1734002660401,0.8129,3918.8,3917.6,5.38360347]
[1734002660697,3.35198,3919.2,3917.8,0.3827]
[1734002660912,2.55178,3918.9,3917.9,0.3827]
[1734002661350,0.335198,3919.1,3918.1,0.3827]
[1734002661484,0.335198,3919.1,3918.3,0.3827]
[1734002661780,2.5516,3919.1,3918.3,0.3827]
[1734002661985,0.50765072,3919.4,3918.3,0.3827]
[1734002662298,2.55147,3919.3,3918.3,0.3827]
[1734002662607,0.50765072,3919.4,3918.3,0.3827]
[1734002662608,2.55155,3919.2,3918.3,0.3827]
[1734002663019,3.05907072,3919.4,3918.3,0.3827]
[1734002663197,2.55082,3920.3,3918.5,0.3827]
[1734002663517,2.55082,3920.3,3918.4,2.85654138]
[1734002663518,2.55115,3919.8,3918.7,0.3827]
[1734002663721,2.55111,3919.9,3918.8,0.3827]
[1734002664556,0.51183522,3919.7,3918.8,0.3827]
[1734002664840,0.30629852,3919.6,3918.8,0.3827]
[1734002665140,0.51183522,3919.7,3918.8,0.3827]
[1734002665910,0.7649,3920.4,3918.5,0.3827]
[1734002666099,2.55118,3919.8,3918.8,0.3827]
[1734002667551,0.50861336,3920.2,3918.8,2.83102347]
[1734002667841,2.55076,3920.4,3919.3,2.55146]
[1734002668003,2.55056,3920.8,3919.5,2.93404]
[1734002668199,2.55056,3920.8,3919.6,2.9594694]
[1734002668200,0.51993969,3920.7,3919.6,2.9594694]
[1734002668415,0.51993969,3920.7,3919.7,0.3827]
[1734002668812,0.51993969,3920.7,3919.8,0.3827]
[1734002669145,0.7527,3921.4,3919.8,0.3827]
[1734002669329,2.55083,3920.3,3919.8,0.3827]
[1734002669638,2.55069,3920.6,3919.8,0.3827]
[1734002670228,0.49994005,3920.8,3919.8,0.3827]
[1734002670434,2.55058,3920.7,3919.8,0.3827]
[1734002670638,2.55064,3920.6,3919.8,0.3827]
[1734002670809,0.49994005,3920.8,3919.8,0.3827]
[1734002671020,3.05045005,3920.8,3919.8,0.3827]
[1734002671215,3.05045005,3920.8,3919.9,0.3827]
[1734002671816,0.330269,3921.3,3919.9,0.3827]
[1734002672014,5.38064347,3922.2,3919.8,0.293397]
[1734002672015,0.50789909,3922.0,3920.6,2.5506]
[1734002672239,2.54991,3921.7,3920.8,0.3827]
[1734002672961,2.54977,3922.0,3920.8,0.3827]
[1734002673261,2.54979,3921.9,3920.8,0.3827]
[1734002673947,2.54993,3921.7,3920.8,0.3827]
[1734002674110,2.54993,3921.7,3920.8,0.976038]
[1734002674637,0.49883706,3922.2,3920.9,0.3827]
[1734002674863,0.8031,3923.4,3921.7,0.3827]
[1734002675147,5.57,3925.2,3922.1,0.3827]
[1734002675148,2.54888,3923.3,3922.1,0.3827]
[1734002675311,2.54872,3923.6,3922.3,0.3827]
[1734002675507,2.54872,3923.6,3922.2,0.60183476]
[1734002675508,2.54872,3923.6,3922.5,0.3827]
[1734002675820,2.54872,3923.6,3922.4,2.57491902]
[1734002675821,2.83102347,3924.8,3922.7,0.3827]
[1734002676022,2.54844,3924.0,3922.8,0.3827]
[1734002676252,3.06974566,3924.4,3922.9,3.40818567]
[1734002676580,3.06974566,3924.4,3923.3,0.3827]
[1734002676782,2.54801,3924.7,3923.3,0.3827]
[1734002676948,2.54783,3924.9,3923.5,0.3827]
[1734002677143,2.54749,3925.5,3923.5,0.3827]
[1734002677339,2.54792,3924.8,3923.6,3.0]
[1734002677551,2.54777,3925.0,3923.7,0.3827]
[1734002677734,0.7601,3925.8,3923.9,0.3827]
[1734002677936,2.54821,3924.4,3923.9,0.3827]
[1734002678128,2.54762,3925.3,3923.9,2.93118]
[1734002678364,2.54762,3925.3,3923.8,0.593137]
[1734002678365,2.54759,3925.3,3924.0,2.95654794]
[1734002678542,2.54759,3925.3,3924.2,0.3827]
[1734002678880,0.7915,3926.3,3924.3,0.02547684]
[1734002679081,0.7915,3926.3,3924.2,0.3827]
[1734002679082,2.54758,3925.3,3924.2,0.3827]
[1734002679286,2.54725,3925.8,3924.2,0.3827]
[1734002679623,0.51214958,3925.9,3924.2,0.3827]
[1734002679624,2.54798,3924.7,3924.2,0.3827]
[1734002679803,0.30593996,3925.7,3924.2,0.3827]
[1734002680100,2.54738,3925.6,3924.2,0.3827]
[1734002680302,2.54773,3925.1,3924.2,0.3827]
[1734002681005,2.54778,3925.0,3924.2,0.3827]
[1734002681404,2.54725,3925.8,3924.2,0.3827]
[1734002681698,2.54765,3925.2,3924.3,0.29311]
[1734002681872,2.54765,3925.2,3924.2,0.3827]
[1734002682200,0.51214958,3925.9,3924.2,0.3827]
[1734002682424,2.54777,3925.0,3924.2,0.3827]
[1734002682707,0.51214958,3925.9,3924.2,0.3827]
[1734002682866,2.5479,3924.8,3924.2,0.3827]
[1734002683214,0.51214958,3925.9,3924.2,0.3827]
[1734002683503,4.51029827,3926.3,3924.2,0.3827]
[1734002683504,2.54822,3924.3,3924.2,0.3827]
[1734002683701,0.55,3925.2,3923.8,0.3827]
[1734002683702,2.5484,3924.1,3923.8,0.3827]
[1734002684356,2.54848,3923.9,3923.8,0.3827]
[1734002685251,2.54848,3923.9,3922.8,0.3827]
[1734002685457,2.54848,3923.9,3922.9,0.593201]
[1734002685654,2.54858,3923.8,3922.9,0.593201]
[1734002685867,2.54822,3924.3,3922.9,0.593201]
[1734002686054,2.54868,3923.6,3922.9,0.593201]
[1734002687078,0.7958,3924.5,3922.8,0.3827]
[1734002687586,2.5492,3922.8,3922.1,0.3827]
[1734002688295,2.54893,3923.3,3922.1,0.3827]
[1734002689059,2.54901,3923.1,3922.1,0.3827]
[1734002689269,2.54906,3923.1,3922.1,0.3827]
[1734002689468,2.54907,3923.0,3922.1,0.3827]
[1734002689793,2.5492,3922.8,3922.1,0.3827]